fUSD/lending_fUSD_20240205
["ID","MTS","AMOUNT","RATE_DAILY","PERIOD"]
[313333291,1707163846095,-216.8229406,0.00028676,2]
[313333292,1707163846105,-1000.0,0.00029599,2]
[313333293,1707163846114,-1176.58295494,0.00029627,2]
[313333294,1707163846123,-150.0,0.00029695,2]
[313333295,1707163846132,-2000.0,0.0002973,2]
[313333296,1707163846142,-293.31,0.0002989,2]
[313333298,1707163846151,-3654.95082294,0.00029915,2]
[313333300,1707163846165,-4287.61917706,0.00029915,2]
[313333302,1707163846175,-305.04,0.00029956,2]
[313333305,1707163846185,-250.0,0.00029968,2]
[313333307,1707163846194,-192.51,0.00029974,2]
[313333309,1707163846204,-2708.53328139,0.0003,7]
[313333310,1707163846213,-155.0,0.0003,2]
[313333312,1707163846222,-200.0,0.00030019,2]
[313333315,1707163846232,-150.0,0.00030108,2]
[313333316,1707163846241,-158.55,0.00030308,2]
[313333318,1707163846250,-170.75,0.00030351,2]
[313333320,1707163846259,-201.68,0.00030403,2]
[313333321,1707163846268,-158.55,0.00030406,2]
[313333322,1707163846278,-247.0,0.00030465,2]
[313333323,1707163846287,-181.58,0.00030495,2]
[313333324,1707163846296,-158.55,0.00030505,2]
[313333325,1707163846306,-200.0,0.00030529,2]
[313333326,1707163846316,-200.0,0.00030543,2]
[313333327,1707163846325,-158.55,0.00030604,2]
[313333328,1707163846334,-165.73,0.00030608,2]
[313333329,1707163846344,-1062.04763391,0.00030614,5]
[313333330,1707163846361,-86.81794136,0.00030614,5]
[313333331,1707163846370,-166.95,0.00030685,2]
[313333332,1707163846379,-200.0,0.00030686,2]
[313333333,1707163846389,-158.55,0.00030703,2]
[313333334,1707163846399,-158.55,0.00030801,2]
[313333335,1707163846408,-158.55,0.000309,2]
[313333336,1707163846418,-1244.37,0.00030944,2]
[313333337,1707163846427,-158.55,0.00030999,2]
[313333338,1707163846436,-1702.61351731,0.00031,7]
[313333339,1707163846446,-158.55,0.00031097,2]
[313333340,1707163846454,-158.55,0.00031196,2]
[313333341,1707163846464,-158.55,0.00031295,2]
[313333342,1707163846473,-158.55,0.00031394,2]
[313333343,1707163846482,-158.55,0.00031492,2]
[313333344,1707163846491,-293.31,0.00031534,2]
[313333345,1707163846501,-158.55,0.00031591,2]
[313333346,1707163846510,-158.55,0.0003169,2]
[313333347,1707163846520,-989.37153236,0.00031787,2]
[313333348,1707163846529,-170.15365364,0.00031787,2]
[313333349,1707163846539,-158.55,0.00031788,2]
[313333350,1707163846549,-102080.304569,0.000318,2]
[313333351,1707163846558,-158.55,0.00031887,2]
[313333352,1707163846567,-1176.58295494,0.00031991,3]
[313333353,1707163846577,-156.91,0.00032175,2]
[313333354,1707163846587,-885.0,0.00032219,5]
[313333355,1707163846596,-209.95856334,0.00032386,4]
[313333356,1707163846605,-192.51,0.00032714,2]
[313333357,1707163846615,-193.56814976,0.0003275,2]
[313333358,1707163846624,-186.59,0.0003289,2]
[313333359,1707163846634,-293.31,0.00033178,2]
[313333360,1707163846643,-1000.0,0.00033298,2]
[313333361,1707163846653,-1176.58295494,0.00034355,6]
[313333362,1707163846662,-1148.86557527,0.00034471,7]
[313333363,1707163846671,-1546.84012333,0.00034569,2]
[313333364,1707163846681,-155.18552147,0.0003457,4]
[313333365,1707163846690,-293.31,0.00034822,2]
[313333366,1707163846700,-536.96376156,0.000349,2]
[313333367,1707163846709,-536.96376154,0.000349,2]
[313333368,1707163846719,-536.96376154,0.000349,2]
[313333369,1707163846729,-536.96376154,0.000349,2]
[313333370,1707163846738,-174.97,0.00035894,2]
[313333371,1707163846748,-2211.585,0.00036291,2]
[313333372,1707163846757,-232.82031935,0.00036389,4]
[313333373,1707163846766,-296.47071973,0.00036389,4]
[313333374,1707163846775,-216.32078387,0.00036389,4]
[313333375,1707163846785,-289.93338006,0.00036389,4]
[313333376,1707163846794,-156.50903036,0.00036389,4]
[313333377,1707163846804,-365.30630905,0.00036389,4]
[313333378,1707163846815,-162.31856081,0.00036389,4]
[313333379,1707163846830,-155.8124399,0.00036389,2]
[313333380,1707163846841,-394.04846352,0.0003639,4]
[313333381,1707163846851,-1040.16047571,0.0003639,4]
[313333382,1707163846860,-151.78609959,0.0003639,2]
[313333383,1707163846870,-207.3910213,0.0003639,2]
[313333384,1707163846879,-804.95443158,0.00036391,2]
[313333385,1707163846888,-51520.29341989,0.00036391,15]
[313333386,1707163846899,-195153.09281368,0.00036391,15]
[313333387,1707163846909,-92040.45971056,0.00036391,15]
[313333388,1707163846918,-23835.281156,0.00036408,15]
[313333389,1707163846927,-293.31,0.00036466,2]
[313333390,1707163846936,-1176.58295494,0.00036718,9]
[313333391,1707163846945,-152.38460818,0.000369,2]
[313333392,1707163846954,-515.68,0.000369,30]
[313333393,1707163846963,-353.83,0.000369,2]
[313333394,1707163846972,-1000.0,0.00036998,2]
[313333395,1707163846983,-156.91,0.00037551,2]
[313333396,1707163846992,-153.53,0.000377,3]
[313333397,1707163847001,-153.53,0.000377,3]
[313333398,1707163847010,-180.0,0.00037899,15]
[313333399,1707163847019,-54876.2918914,0.000379,2]
[313333400,1707163847031,-10023.77322503,0.000379,2]
[313333401,1707163847043,-8843.92475302,0.000379,2]
[313333402,1707163847056,-2904.57316507,0.000379,2]
[313333403,1707163847068,-1528.0,0.000379,2]
[313333404,1707163847079,-1289.76413285,0.000379,2]
[313333405,1707163847090,-950.0,0.000379,2]
[313333406,1707163847102,-4318.70448436,0.000379,2]
[313333407,1707163847113,-5208.30582001,0.000379,2]
[313333408,1707163847125,-4090.62475993,0.000379,2]
[313333409,1707163847136,-1136.31970679,0.000379,2]
[313333410,1707163847148,-5570.45453968,0.000379,2]
[313333411,1707163847208,155.0,0.00020699,2]
[313333412,1707163958195,3691.30746411,0.00022795,4]
[313333413,1707163972521,200.0,0.00022095,2]
[313333414,1707164031088,1298.62048475,0.00022788,7]
[313333415,1707164050654,171324.9531381,0.00022095,2]
[313333416,1707164054505,3917.07024013,0.00022791,5]
[313333417,1707164054528,3208.34435694,0.00022791,5]
[313333418,1707164070659,114216.6354254,0.00022095,2]
[313333419,1707164088654,95180.52952117,0.00022095,2]
[313333420,1707164115186,49589.05588053,0.00022095,2]
[313333421,1707164137176,49589.05588053,0.00022095,2]
[313333422,1707164153207,49589.05588053,0.00022095,2]
[313333423,1707164173188,49589.05588053,0.00022095,2]
[313333424,1707164183361,159.99,0.00022095,2]
[313333425,1707164189190,49589.05588053,0.00022095,2]
[313333426,1707164215196,49589.05588053,0.00022095,2]
[313333427,1707164231190,49589.05588053,0.00022095,2]
[313333428,1707164249226,49589.05588053,0.00022095,2]
[313333429,1707164273204,49589.05588053,0.00022095,2]
[313333430,1707164291238,49589.05588053,0.00022095,2]
[313333431,1707164313204,49589.05588053,0.00022095,2]
[313333432,1707164333213,25603.56244116,0.00022095,2]
[313333433,1707164544041,299.99,0.00022695,7]
[313333434,1707164658379,155.70879883,0.00022444,2]
[313333435,1707164661803,252.0805,0.00022458,2]
[313333436,1707164891805,424.452,0.00022428,2]
[313333438,1707164935295,525.70051931,0.00022501,2]
[313333439,1707164936504,4056.57864926,0.00022494,2]
[313333440,1707164943113,293.16642242,0.00022501,2]
[313333441,1707164949083,1045.60631986,0.00022501,2]
[313333442,1707164951434,266.46430983,0.00022501,2]
[313333443,1707164957829,761.74549612,0.00022501,2]
[313333444,1707164962023,944.71074226,0.00022501,2]
[313333445,1707164962237,218.78708753,0.00022501,2]
[313333446,1707164964056,2790.99850459,0.00022501,2]
[313333447,1707164967980,6462.85032623,0.00022501,2]
[313333448,1707164973822,486.91821639,0.00022501,2]
[313333449,1707164973926,221.2670664,0.00022501,2]
[313333450,1707164974327,1054.28693765,0.00022501,2]
[313333451,1707164975772,303.34283144,0.00022501,2]
[313333452,1707164976230,249.57611315,0.00022501,2]
[313333453,1707164980055,851.36403945,0.00022501,2]
[313333454,1707164986007,155.0,0.00022501,2]
[313333455,1707164986037,3898.85969142,0.00022501,2]
[313333456,1707164986069,940.99005925,0.00022501,2]
[313333457,1707164988128,219.89093108,0.00022501,2]
[313333458,1707164988317,575.41818075,0.00022501,2]
[313333459,1707164989343,363.04147037,0.00022501,2]
[313333460,1707164990150,1049.36025505,0.00022501,2]
[313333461,1707164991773,300.95318135,0.00022501,2]
[313333462,1707164997794,155.0,0.00020251,2]
[313333463,1707165001573,150.0,0.00022501,2]
[313333464,1707165001624,150.0,0.00022501,2]
[313333465,1707165007348,361.54326996,0.00022501,2]
[313333466,1707165007840,525.70051931,0.00022501,2]
[313333467,1707165008830,172.54144566,0.00022501,2]
[313333468,1707165010155,1048.21149419,0.00022501,2]
[313333469,1707165011060,419.68147873,0.00022501,2]
[313333470,1707165017645,293.16642242,0.00022501,2]
[313333471,1707165017798,174.62238448,0.00020251,2]
[313333472,1707165024617,33481.62634379,0.00022501,2]
[313333473,1707165026850,231.13364506,0.00022501,2]
[313333474,1707165029067,416.91601023,0.00022501,2]
[313333475,1707165029839,343.81944939,0.00022501,2]
[313333480,1707165031635,291.66852985,0.00022501,2]
[313333506,1707165034284,-4263.36144201,0.00022502,2]
[313333511,1707165034309,-48.84264455,0.00022502,2]
[313333514,1707165034319,-1119.77254212,0.00022502,2]
[313333517,1707165034331,-265.50026739,0.00022502,2]
[313333520,1707165034342,-9223.13454594,0.00022502,2]
[313333525,1707165034361,-1320.21820552,0.00022502,2]
[313333528,1707165034373,-2377.035,0.00022502,2]
[313333536,1707165034459,-3182.01581748,0.00022502,2]
[313333549,1707165034576,-3388.1414878,0.00022502,2]
[313333554,1707165034620,-907.94,0.00022502,2]
[313333556,1707165034633,-2220.8144468,0.00022502,2]
[313333558,1707165034647,-858.75982976,0.00022502,2]
[313333715,1707165037810,-7978.94377898,0.00022502,2]
[313333716,1707165037822,-11702.54839003,0.00022502,2]
[313333717,1707165037832,-358.76313846,0.00022531,2]
[313333718,1707165037841,-1565.84,0.00022531,2]
[313333719,1707165037850,-155.0,0.00022542,2]
[313333720,1707165037859,-1064.42655819,0.00022542,2]
[313333721,1707165037868,-18085.64784135,0.00022544,2]
[313333722,1707165037880,-270.5502,0.00022544,2]
[313333723,1707165037926,-7941.72920751,0.00022544,2]
[313333724,1707165037936,-155.25463852,0.00022549,2]
[313333725,1707165037947,-1224.74365908,0.00022551,2]
[313333726,1707165037957,-499.99,0.00022551,2]
[313333727,1707165037968,-155.36178084,0.00022552,2]
[313333728,1707165037978,-294.4833,0.00022899,2]
[313333729,1707165037988,-8177.3658,0.000229,2]
[313333730,1707165037999,-4536.26688406,0.000229,2]
[313333731,1707165038013,-2128.36540715,0.000229,2]
[313333732,1707165038089,-9426.85087347,0.000229,2]
[313333733,1707165038100,-150.0,0.00023,2]
[313333734,1707165038112,-174.71,0.00024323,2]
[313333735,1707165038123,-250.0,0.00024658,2]
[313333736,1707165038134,-210.0,0.00024751,2]
[313333738,1707165038144,-232.0909,0.000249,2]
[313333740,1707165038155,-15.92070635,0.00024908,2]
[313333743,1707165038173,-177.78929365,0.00024908,2]
[313333744,1707165038184,-359.99149375,0.00025,4]
[313333745,1707165038199,-301.06218014,0.00025,4]
[313333748,1707165038216,-676.34999986,0.00025,4]
[313333750,1707165038229,-15708.48511829,0.00025,4]
[313333752,1707165038242,-1641.13909564,0.00025,4]
[313333754,1707165038254,-46.96371778,0.00025,3]
[313333792,1707165040353,-303.03628222,0.00025,3]
[313333793,1707165040363,-17.01106696,0.00025856,2]
[313333794,1707165040374,-134.77893304,0.00025856,2]
[313333795,1707165040384,-175.5229339,0.0002609,2]
[313333796,1707165040405,-1907.32022879,0.0002609,2]
[313333797,1707165040417,-817.15998297,0.0002609,2]
[313333798,1707165040429,-489.47653646,0.0002609,2]
[313333799,1707165040441,-2179.37507382,0.0002609,2]
[313333800,1707165040488,-753.39095171,0.0002609,2]
[313333801,1707165040513,-632.6643934,0.0002609,2]
[313333802,1707165040526,-2358.50063164,0.0002609,2]
[313333803,1707165040541,-1689.95371135,0.0002609,2]
[313333804,1707165040553,-387.72733961,0.0002609,2]
[313333805,1707165040565,-707.88671975,0.0002609,2]
[313333806,1707165040575,-1000.0,0.00026726,2]
[313333807,1707165040585,-23900.0,0.00026826,2]
[313333808,1707165040595,-400.0,0.00027,3]
[313333809,1707165040604,-193.71,0.00027172,2]
[313333810,1707165040613,-400.0,0.00027303,2]
[313333811,1707165040622,-174.81,0.00027523,2]
[313333812,1707165040632,-166.96,0.00027692,2]
[313333813,1707165040642,-150.0,0.00027735,2]
[313333814,1707165040651,-155.70879879,0.00027735,2]
[313333815,1707165040661,-200.0,0.00027831,2]
[313333816,1707165040671,-4219.76731249,0.00028,2]
[313333817,1707165040680,-225.91,0.00028305,2]
[313333818,1707165040690,-200.0,0.00028745,2]
[313333819,1707165040699,-200.0,0.00028755,2]
[313333820,1707165040709,-200.0,0.00028764,2]
[313333821,1707165040718,-273.39,0.0002897,2]
[313333822,1707165040728,-450.0,0.00029,3]
[313333823,1707165040741,-2037.39,0.00029009,2]
[313333824,1707165040750,-5725.8,0.00029009,2]
[313333825,1707165040760,-4914.2,0.00029009,2]
[313333826,1707165040769,-5221.64,0.00029009,2]
[313333827,1707165040778,-1118.04,0.00029009,2]
[313333828,1707165040789,-273.39,0.0002905,2]
[313333829,1707165040798,-273.39,0.00029129,2]
[313333830,1707165040808,-273.39,0.00029209,2]
[313333831,1707165040817,-273.39,0.00029288,2]
[313333832,1707165040826,-273.39,0.00029368,2]
[313333833,1707165040836,-193.71,0.00029436,2]
[313333834,1707165040845,-273.39,0.00029447,2]
[313333835,1707165040855,-273.39,0.00029526,2]
[313333836,1707165040864,-273.39,0.00029606,2]
[313333837,1707165040874,-273.39,0.00029685,2]
[313333838,1707165040882,-273.39,0.00029765,2]
[313333839,1707165040891,-250.0,0.00029827,2]
[313333840,1707165040901,-2000.0,0.00029827,2]
[313333841,1707165040911,-273.39,0.00029844,2]
[313333842,1707165040920,-254.2,0.00029896,2]
[313333843,1707165040930,-273.39,0.00029924,2]
[313333844,1707165040939,-225.91,0.00029949,2]
[313333845,1707165040948,-155.0,0.0003,2]
[313333846,1707165040958,-273.39,0.00030003,2]
[313333847,1707165040967,-273.39,0.00030083,2]
[313333848,1707165040976,-273.39,0.00030162,2]
[313333849,1707165040985,-273.39,0.00030242,2]
[313333850,1707165040995,-174.81,0.00030275,2]
[313333851,1707165041008,-273.39,0.00030321,2]
[313333852,1707165041018,-250.0,0.0003033,2]
[313333853,1707165041027,-273.39,0.000304,2]
[313333854,1707165041037,-273.39,0.0003048,2]
[313333855,1707165041046,-400.0,0.00030716,2]
[313333856,1707165041057,-2590.0,0.000308,2]
[313333857,1707165041066,-167.0,0.00030873,2]
[313333858,1707165041076,-500.0,0.00031,3]
[313333859,1707165041085,-225.91,0.00031593,2]
[313333860,1707165041095,-193.71,0.000317,2]
[313333861,1707165041105,-168.62,0.00031847,2]
[313333862,1707165041114,-3344.46064377,0.00032,14]
[313333863,1707165041123,-13132.26818572,0.00032,4]
[313333864,1707165041133,-600.0,0.00032172,2]
[313333865,1707165041143,-399.62758534,0.00032219,5]
[313333866,1707165041152,-233.72695361,0.00032219,5]
[313333867,1707165041161,-202.8060471,0.000325,2]
[313333868,1707165041176,-397.985,0.00032524,2]
[313333869,1707165041185,-1397.442,0.00032524,2]
[313333870,1707165041195,-951.484,0.00032524,2]
[313333871,1707165041204,-2867.0,0.00032524,2]
[313333872,1707165041214,-843.0,0.00032524,2]
[313333873,1707165041223,-1864.491,0.00032524,2]
[313333874,1707165041233,-452.0,0.00032524,2]
[313333875,1707165041243,-535.25,0.00032524,2]
[313333876,1707165041253,-1241.129,0.00032524,2]
[313333877,1707165041264,-1125.0,0.000329,2]
[313333878,1707165041273,-155.70879879,0.00033026,2]
[313333879,1707165041283,-174.81,0.00033027,2]
[313333880,1707165041294,-225.91,0.00033237,2]
[313333881,1707165041303,-193.71,0.00033963,2]
[313333882,1707165041312,-766.07655536,0.00034,4]
[313333883,1707165041321,-400.0,0.00034129,2]
[313333884,1707165041331,-596.0,0.00034466,2]
[313333885,1707165041341,-446.661,0.00034466,2]
[313333886,1707165041350,-1001.0,0.00034466,2]
[313333887,1707165041368,-248.647,0.00034466,2]
[313333888,1707165041377,-1942.0,0.00034466,2]
[313333889,1707165041386,-983.099,0.00034466,2]
[313333890,1707165041396,-443.397,0.00034466,2]
[313333891,1707165041405,-1138.0,0.00034466,2]
[313333893,1707165041414,-232.375,0.00034466,2]
[313333895,1707165041424,-342.0,0.00034466,2]
[313333897,1707165041433,-225.91,0.00034881,2]
[313333899,1707165041443,-9000.73304889,0.000349,4]
[313333901,1707165041454,-175.39960558,0.000349,2]
[313333903,1707165041464,-500.0,0.000349,2]
[313333905,1707165041473,-500.0,0.0003498,2]
[313333907,1707165041482,-5347.79317175,0.00035,7]
[313333910,1707165041496,-2153.05,0.00035,7]
[313333912,1707165041508,-4252.09703113,0.00035,7]
[313333914,1707165041519,-1627.41531483,0.00035,7]
[313333917,1707165041531,-2437.68791323,0.00035,7]
[313333919,1707165041541,-357.45250051,0.00035,14]
[313333923,1707165041573,24093.49423259,0.00022501,2]
[313333925,1707165041586,-754.03375169,0.00035,14]
[313333927,1707165041596,-450.02393982,0.00035,4]
[313333929,1707165041605,-1266.14581816,0.00035,4]
[313333931,1707165041615,-155.0,0.00035,2]
[313333933,1707165041624,-186.67057853,0.00035,4]
[313333935,1707165041634,-304.43083158,0.00035,7]
[313333937,1707165041643,-500.0,0.0003514,2]
[313333939,1707165041653,-500.0,0.0003529,2]
[313333942,1707165041662,-500.0,0.0003545,2]
[313333944,1707165041672,-152.883,0.00035524,2]
[313333946,1707165041681,-500.0,0.0003561,2]
[313333948,1707165041690,-167.0,0.00035969,2]
[313333950,1707165041700,-301.59893523,0.00036,4]
[313333952,1707165041711,-193.87751556,0.000361,4]
[313333954,1707165041721,-600.0,0.00036194,2]
[313333956,1707165041731,-193.71,0.00036227,2]
[313333958,1707165041740,-30282.85802377,0.00036319,15]
[313333960,1707165041753,-356.19588052,0.00036319,15]
[313333974,1707165041918,-233.367,0.00032524,2]
[313333975,1707165041928,-57.03291326,0.00036319,15]
[313333991,1707165042756,-20404.68985862,0.00036319,15]
[313333993,1707165042766,-41499.0958836,0.00036319,15]
[313333995,1707165042775,-11412.25136799,0.00036319,15]
[313333997,1707165042785,-6104.59217454,0.00036319,15]
[313333999,1707165042796,-2712.23100922,0.00036391,7]
[313334001,1707165042806,-29065.16226891,0.00036491,15]
[313334003,1707165042817,-225.91,0.00036525,2]
[313334005,1707165042827,-311.38707581,0.00037,4]
[313334007,1707165042836,-671.49248102,0.00037,7]
[313334009,1707165042846,-15124.07589529,0.00037,4]
[313334010,1707165042859,-17750.87304341,0.00037,4]
[313334011,1707165042871,-11457.67328679,0.00037,4]
[313334012,1707165042883,-1641.23690211,0.00037,4]
[313334013,1707165042894,-1228.15636633,0.00037,4]
[313334014,1707165042907,-418.77113014,0.00037,4]
[313334015,1707165042920,-310.2590087,0.00037,4]
[313334016,1707165042930,-373.28877132,0.00037229,5]
[313334017,1707165042942,-1252.17169914,0.00037229,5]
[313334018,1707165042959,-396.88618375,0.00032524,2]
[313334019,1707165042972,-308.11381625,0.00032524,2]
[313334020,1707165042982,-219.63952954,0.00037229,5]
[313334021,1707165042993,-155.51757239,0.00037517,4]
[313334022,1707165043003,-245.07493939,0.00037517,4]
[313334023,1707165043013,-293.85487138,0.00037517,4]
[313334024,1707165043024,-3632.67541228,0.00037517,4]
[313334025,1707165043033,-155.0,0.00037517,4]
[313334026,1707165043044,-204.80922949,0.00037517,4]
[313334027,1707165043053,-155.37341501,0.00037517,4]
[313334028,1707165043064,-942.8632221,0.00037517,4]
[313334029,1707165043074,-2086.20839324,0.00037518,4]
[313334030,1707165043084,-281.28534164,0.00037519,4]
[313334031,1707165043094,-155.0,0.00037519,4]
[313334032,1707165043104,-265.83776205,0.00037519,4]
[313334033,1707165043115,-247.50960015,0.00037519,4]
[313334034,1707165043125,-2519.1287398,0.0003752,4]
[313334035,1707165043138,-846.22987002,0.0003752,4]
[313334036,1707165043151,-7163.99269994,0.0003752,4]
[313334037,1707165043161,-150.0,0.00037521,2]
[313334038,1707165043174,-151.47154,0.00037521,2]
[313334040,1707165043183,-852.37309677,0.0003753,2]
[313334042,1707165043192,-1171.50098923,0.00037538,2]
[313334044,1707165043202,-400.0,0.00037542,2]
[313334047,1707165043214,-150.0,0.0003765,2]
[313334049,1707165043224,-153.51,0.000377,3]
[313334051,1707165043234,-153.51,0.000377,3]
[313334054,1707165043244,-526.14582239,0.00037798,2]
[313334056,1707165043254,-900.0,0.000378,2]
[313334058,1707165043263,-1888.8683,0.000378,2]
[313334060,1707165043273,-284.7391,0.000378,15]
[313334062,1707165043282,-162.74596975,0.0003786,2]
[313334064,1707165043293,-400.0,0.00037896,2]
[313334066,1707165043303,-433.78264,0.00037896,2]
[313334068,1707165043313,-155.62835532,0.00037896,4]
[313334070,1707165043323,-1816.55290088,0.00037896,4]
[313334072,1707165043333,-503.73967654,0.00037896,2]
[313334074,1707165043342,-12134.18576654,0.00037897,4]
[313334075,1707165043356,-980.71292844,0.00037898,4]
[313334078,1707165043366,-289.96148954,0.00037898,4]
[313334080,1707165043376,-417.8227,0.00037898,4]
[313334082,1707165043386,-162.10429849,0.00037898,4]
[313334084,1707165043395,-631.26075856,0.00037898,4]
[313334086,1707165043405,-155.19659664,0.00037898,4]
[313334088,1707165043415,-242.97600167,0.00037898,4]
[313334090,1707165043424,-1316.56945412,0.00037898,4]
[313334092,1707165043434,-197.41256379,0.00037898,4]
[313334094,1707165043444,-155.5397774,0.00037898,4]
[313334096,1707165043454,-413.15022701,0.00037898,2]
[313334098,1707165043463,-191.27689947,0.00037898,4]
[313334100,1707165043473,-156.22870762,0.00037898,4]
[313334102,1707165043483,-219.64737748,0.00037898,4]
[313334105,1707165043493,-155.0,0.00037898,4]
[313334107,1707165043503,-524.86593909,0.00037898,4]
[313334109,1707165043513,-245.72720957,0.00037898,4]
[313334111,1707165043523,-244.28393771,0.00037898,4]
[313334113,1707165043532,-178.41668698,0.00037898,15]
[313334115,1707165043543,-296.47071973,0.00037898,4]
[313334117,1707165043552,-215.53094657,0.00037898,4]
[313334119,1707165043562,-155.0,0.00037898,4]
[313334121,1707165043571,-225.94230657,0.00037898,4]
[313334123,1707165043581,-803.69880258,0.00037898,4]
[313334125,1707165043591,-155.59130604,0.00037898,4]
[313334127,1707165043600,-4634.6600189,0.00037898,4]
[313334130,1707165043609,-155.0,0.00037898,4]
[313334132,1707165043619,-288.03524596,0.00037898,4]
[313334134,1707165043628,-155.0,0.00037898,4]
[313334136,1707165043641,-2143.62450616,0.00037898,4]
[313334138,1707165043650,-159.12735678,0.00037898,4]
[313334140,1707165043659,-233.6686873,0.00037898,4]
[313334142,1707165043667,-290.30960641,0.00037898,4]
[313334144,1707165043677,-1841.83381076,0.00037898,4]
[313334146,1707165043686,-298.82580935,0.00037898,4]
[313334148,1707165043695,-202.34228253,0.00037898,4]
[313334150,1707165043705,-5445.7964682,0.00037898,4]
[313334152,1707165043714,-249.52928063,0.00037898,4]
[313334154,1707165043724,-5232.12626732,0.00037899,4]
[313334156,1707165043735,-2000.0,0.000379,2]
[313334158,1707165043744,-200.0,0.000379,2]
[313334160,1707165043754,-1000.0,0.000379,2]
[313334162,1707165043764,-2000.0,0.000379,2]
[313334164,1707165043773,-200.0,0.000379,2]
[313334166,1707165043782,-1171.50098924,0.00038147,2]
[313334168,1707165043793,-10.74207271,0.00038279,2]
[313334170,1707165043807,-189.25792729,0.00038279,2]
[313334173,1707165043817,-155.70879879,0.00038318,2]
[313334175,1707165043826,-150.81,0.00038356,2]
[313334177,1707165043836,-200.0,0.00038452,7]
[313334179,1707165043845,-2402.87328043,0.00038464,8]
[313334181,1707165043857,-309.35772872,0.00038464,8]
[313334183,1707165043867,-193.71,0.00038491,2]
[313334185,1707165043876,-200.0,0.00038662,2]
[313334187,1707165043886,-808.34477012,0.0003888,2]
[313334189,1707165043895,-307.85877324,0.0003888,2]
[313334192,1707165043907,-250.5525,0.0003888,2]
[313334194,1707165043919,-249.93349683,0.0003888,2]
[313334196,1707165043928,-386.69403663,0.0003888,2]
[313334199,1707165043944,-421.65073344,0.0003888,2]
[313334201,1707165043953,-808.34477007,0.0003888,2]
[313334203,1707165043963,-808.34477007,0.0003888,2]
[313334205,1707165043973,-808.34477007,0.00038924,2]
[313334207,1707165043982,-465.43297161,0.00039,2]
[313334209,1707165043992,-200.0,0.00039048,2]
[313334211,1707165044001,-199.83,0.000394,7]
[313334213,1707165044010,-124.02120255,0.00039465,2]
[313334215,1707165044023,-402.12461966,0.00039465,2]
[313334217,1707165044032,-793.0,0.0004,5]
[313334220,1707165044043,-565.6813981,0.0004,30]
[313334222,1707165044055,-583.9169525,0.0004,30]
[313334224,1707165044067,-1874.75721185,0.0004,30]
[313334226,1707165044079,-920.88836545,0.0004,30]
[313334229,1707165044091,-1054.7560721,0.0004,30]
[313334231,1707165044100,-408.62967413,0.0004,7]
[313334233,1707165044109,-54.86425377,0.0004,12]
[313334235,1707165044122,-200.13574623,0.0004,12]
[313334237,1707165044131,-177.39759845,0.0004008,4]
[313334240,1707165044143,-497.95070793,0.0004008,4]
[313334242,1707165044153,-46.15516978,0.00040081,2]
[313334244,1707165044169,-414.4042507,0.00040081,2]
[313334246,1707165044180,-600.0,0.00040215,2]
[313334248,1707165044189,-153.51,0.000405,4]
[313334249,1707165044199,-153.51,0.000405,4]
[313334250,1707165044210,-153.51,0.000405,4]
[313334251,1707165044220,-153.51,0.000405,4]
[313334252,1707165044230,-2965.7968536,0.00040536,30]
[313334253,1707165044266,-1689.73250263,0.00040536,30]
[313334254,1707165044276,-2712.23100915,0.00040536,9]
[313334255,1707165044286,-1000.0,0.000406,2]
[313334256,1707165044300,-193.71,0.00040755,2]
[313334257,1707165044310,-400.0,0.00040955,2]
[313334258,1707165044320,-280.11299096,0.00040992,4]
[313334259,1707165044330,-931.95145673,0.00040992,4]